Cogmind - Beta 10 @@@ ROGUE MODE // 2020.09.10 @ 02:44:44 // Winter2019/RPGLIKE Player: Torako Result: Destroyed by 8R-AWN with 8R-AWN's Boregun Performance ------------- Evolutions (0) 0 Regions Visited (3) 600 Robots Destroyed (21) 105 Value Destroyed (313) 313 Prototype IDs (25) 500 Alien Tech Used (0) 0 Bonus (294) 294 TOTAL SCORE: 1812 Bonus ------- Aligned with FarCom 300 Friendly Fire -6 Cogmind --------- Core Integrity 0/1050 Matter 248/300 Energy 99/100 System Corruption 0% Temperature Cool (0) Movement Core (150) Ox2 Location -10/Exiles Parts ------- > --- POWER (1) -------- (None) > --- PROPULSION (1) --- (None) > --- UTILITY (2) ------ Advanced Terrain Scanner > --- WEAPON (2) ------- High-powered Shotgun Heavy Flail > --- INVENTORY (2) ---- Firepult Peak State ------------ > --- POWER ------------ Light Angular Momentum Engine > --- PROPULSION ------- Light Treads > --- UTILITY ---------- Advanced Terrain Scanner Improved Weapon Shielding > --- WEAPON ----------- Firepult > --- INVENTORY -------- High-powered Shotgun Heavy Flail [Rating: 32] Favorites ----------- Power Light Angular Momentum Engine Engine Light Angular Momentum Engine Propulsion Light Treads Treads Light Treads Utility Advanced Terrain Scanner Device Advanced Terrain Scanner Processor Visual Processing Unit Protection Improved Weapon Shielding Weapon Heavy Flail Energy Gun EM Pulse Gun Energy Cannon Firepult Ballistic Gun Light Assault Rifle Launcher Grenade Launcher Special Weapon Welding Torch Impact Weapon Heavy Flail Build | -11 -10 -10 -10 ------- Run | Scr Mat Min Exi Slots Evolved 2 | . 2 . . Power . | . . . . Propulsion . | . . . . Utility 1 | . 1 . . Weapon 1 | . 1 . . Parts Attached 17 | 3 4 6 4 Power 3 | 1 1 1 . Engine 3 | 1 1 1 . Core . | . . . . Reactor . | . . . . Propulsion 1 | 1 . . . Treads 1 | 1 . . . Leg . | . . . . Wheel . | . . . . Hover . | . . . . Flight . | . . . . Utility 3 | . 1 2 . Device 1 | . . 1 . Storage . | . . . . Processor 1 | . 1 . . Hackware . | . . . . Protection 1 | . . 1 . Artifact . | . . . . Weapon 10 | 1 2 3 4 Energy Gun 2 | 1 1 . . Energy Cannon 1 | . . . 1 Ballistic Gun 2 | . . 1 1 Ballistic Cannon . | . . . . Launcher 1 | . . 1 . Special Weapon 2 | . 1 . 1 Impact Weapon 2 | . . 1 1 Slashing Weapon . | . . . . Piercing Weapon . | . . . . Special Melee Weapon . | . . . . Unidentified Prototypes . | . . . . Parts Lost 4 | . . 1 3 Power 1 | . . . 1 Propulsion 1 | . . . 1 Utility 1 | . . . 1 Weapon 1 | . . 1 . Highest Loss Streak 2 | . . 1 2 Average Slot Usage (%) 90 | . 84 95 86 Engine 17 | . 24 16 14 Treads 17 | . 24 16 13 Device 10 | . . 14 16 Processor 4 | . 12 2 . Protection 10 | . . 13 13 Energy Gun 7 | . 21 4 . Energy Cannon 1 | . . . 6 Ballistic Gun 2 | . . 3 2 Launcher 5 | . . 7 6 Impact Weapon 9 | . . 13 9 Naked Turns . | . . . . Heaviest Build 34 | 7 7 18 34 Greatest Support 20 | 20 20 20 20 Greatest Overweight (x) 5 | 2 . . 5 Average Overweight (x) . | . . . . Largest Inventory Capacity 2 | . 2 2 2 Average Capacity 1 | . . 2 2 Most Carried 2 | . 1 2 2 Average Carried 1 | . . 1 1 Final Capacity 2 | . 2 2 2 Final Carried 2 | . 1 2 2 Class Distribution -------------------- 100% | Mutant Dominant Class ---------------- Mutant | -10/Materials Mutant | -10/Mines Mutant | -10/Exiles Resources | -11 -10 -10 -10 ----------- Run | Scr Mat Min Exi Matter Collected 350 | 122 148 71 9 Remotely . | . . . . Salvage Created 474 | . 331 70 73 Parts 20 | . 12 8 . Haulers Intercepted . | . . . . Recyclers Shooed . | . . . . Parts Field Recycled . | . . . . Retrieved Matter . | . . . . Parts Self-Destructed . | . . . . Prevented . | . . . . Kills | -11 -10 -10 -10 ------- Run | Scr Mat Min Exi Combat Hostiles Destroyed 18 | . 6 5 7 Melee 1 | . . 1 . Guns 5 | . 5 . . Cannons 1 | . . . 1 AOE 8 | . . 2 6 Classes Destroyed 6 | . 3 2 1 Worker 1 | . 1 . . Recycler 1 | . . 1 . Watcher 1 | . 1 . . Swarmer 5 | . . 5 . Grunt 6 | . 6 . . Assembled 7 | . . . 7 Best Kill Streak 7 | . 2 3 7 Combat Bots Only 7 | . 2 3 7 Max Kills in Single Turn 3 | . 1 1 3 Gunslinging . | . . . . Exploded 3 | . . 1 3 Melee 1 | . . 1 . Uniques/NPCs Destroyed . | . . . . Combat | -11 -10 -10 -10 -------- Run | Scr Mat Min Exi Damage Taken 1779 | . 473 236 1070 Core 1316 | . 391 172 753 Absorbed by Shields . | . . . . Redirected to Core 890 | . 272 96 522 Core Remaining (%) 100 | 100 . . . Volleys Fired 72 | . 53 2 17 Largest 1 | . 1 1 1 Hottest 250 | . 40 30 250 Shots Fired 72 | . 53 2 17 Gun 54 | . 46 . 8 Cannon 9 | . . . 9 Launcher 2 | . . 2 . Special 7 | . 7 . . Kinetic 8 | . . . 8 Thermal 16 | . 7 . 9 Explosive 2 | . . 2 . Electromagnetic 46 | . 46 . . Robot Hit Streak 8 | . 8 . 7 Robot Miss Streak 4 | . 2 2 4 Penetration Max . | . . . . Secondary Targets . | . . . . Shots Hit Robots 57 | . 28 5 24 Core Hits 33 | . 14 5 14 Critical Hits . | . . . . Critical Kills . | . . . . Critical Parts Destroyed . | . . . . Melee Attacks 23 | . . 12 11 Impact 23 | . . 12 11 Slashing . | . . . . Piercing . | . . . . Sneak Attacks 1 | . . 1 . Combat Hostiles . | . . . . Follow-up Attacks . | . . . . Damage Inflicted 1530 | . 524 295 711 Guns 595 | . 445 . 150 Cannons 62 | . . . 62 Explosions 473 | . 79 124 270 Melee 400 | . . 171 229 Ramming . | . . . . Kinetic 150 | . . . 150 Thermal 411 | . 79 . 332 Explosive 124 | . . 124 . Electromagnetic 445 | . 445 . . Impact 400 | . . 171 229 Slashing . | . . . . Piercing . | . . . . Highest Corruption . | . . . . Average Corruption . | . . . . Corruption Purged . | . . . . Overload Shots . | . . . . Overflow Damage 16 | . . 16 . Projectiles . | . . . . Explosions . | . . . . Melee 16 | . . 16 . Knockbacks . | . . . . Impact . | . . . . Kinetic . | . . . . Secondary . | . . . . Self-Inflicted Damage 78 | . 41 36 1 Shots 3 | . 1 1 1 Rammed . | . . . . Targets Rammed . | . . . . Kicked . | . . . . Crushed . | . . . . Highest Temperature 341 | . 114 . 341 Average Temperature 89 | . 51 . 184 Received Heat Transfer 236 | . 216 . 20 Siege Activations . | . . . . Robots Corrupted 1 | . 1 . . Combat Hostiles 1 | . 1 . . Parts Fried 5 | . 2 3 . Impact Corruptions 3 | . . 3 . Robots Melted . | . . . . Combat Hostiles . | . . . . Parts Melted . | . . . . Heat Transferred 2240 | . 100 . 2140 Parts Sabotaged . | . . . . Parts Stolen . | . . . . Parts Stripped . | . . . . Power Chain Reactions 2 | . 2 . . Missiles Intercepted . | . . . . Alert | -11 -10 -10 -10 ------- Run | Scr Mat Min Exi Peak Influence 206 | . 206 85 . Initial 4 | . . 4 . Average 55 | . 72 49 . Maximum Alert Level 1 | . 1 . . Low Security (%) 98 | 100 95 100 . Level 1 1 | . 4 . . Level 2 . | . . . . Level 3 . | . . . . Level 4 . | . . . . Level 5 . | . . . . High Security . | . . . . Max Security . | . . . . Squads Dispatched 2 | . 1 1 . Investigation 2 | . 1 1 . Extermination . | . . . . Reinforcement . | . . . . Assault . | . . . . Garrison . | . . . . Intercept . | . . . . Construction Impeded . | . . . . Haulers Reinforced . | . . . . Stealth | -11 -10 -10 -10 --------- Run | Scr Mat Min Exi Distress Signals 1 | . 1 . . Communications Jammed . | . . . . Distress Signals . | . . . . Times Spotted 26 | . 13 5 8 Peak Tracking Total 9 | . 3 3 9 Tactical Retreats 1 | . 1 . . Traps | -11 -10 -10 -10 ------- Run | Scr Mat Min Exi Traps Triggered . | . . . . Indirectly . | . . . . Trap Hack Attempts . | . . . . Triggered . | . . . . Disarmed . | . . . . Reprogrammed . | . . . . Reused . | . . . . Traps Extracted . | . . . . Installed . | . . . . Triggered . | . . . . Machines | -11 -10 -10 -10 ---------- Run | Scr Mat Min Exi Machines Disabled 5 | . . 1 4 Max in Single Turn 2 | . . 1 2 Machines Sabotaged . | . . . . Garrisons Compromised . | . . . . Overloaded Fab Kills . | . . . . Fab Network Shutdowns . | . . . . Hacking | -11 -10 -10 -10 --------- Run | Scr Mat Min Exi Machines Accessed 6 | . 4 1 1 Terminals 3 | . 3 . . Fabricators . | . . . . Repair Stations . | . . . . Recycling Units 1 | . 1 . . Scanalyzers . | . . . . Garrison Access . | . . . . Total Hacks 13 | . 11 1 1 Successful 7 | . 5 1 1 Failed 6 | . 6 . . Catastrophic . | . . . . Database Lockouts . | . . . . Manual 6 | . 5 . 1 Terminals 8 | . 8 . . Fabricators . | . . . . Repair Stations . | . . . . Recycling Units 3 | . 3 . . Scanalyzers . | . . . . Garrison Access . | . . . . Terminal Hacks 4 | . 2 1 1 Prototype ID Bank 1 | . 1 . . Open Door 1 | . . 1 . Branch Access Points 1 | . 1 . . EX-Prototype ID Bank 1 | . . . 1 Fabricator Hacks . | . . . . Repair Station Hacks . | . . . . Recycling Unit Hacks 1 | . 1 . . Report Inventory 1 | . 1 . . Scanalyzer . | . . . . Garrison Access Hacks . | . . . . Unauthorized Hacks 2 | . 2 . . Terminals 2 | . 2 . . Botnet 1 | . 1 . . Disrupt 1 | . 1 . . Fabricators . | . . . . Repair Stations . | . . . . Recycling Units . | . . . . Scanalyzers . | . . . . Garrison Access . | . . . . Data Cores Recovered . | . . . . Used . | . . . . Hacking Detections 3 | . 3 . . Full Trace Events 1 | . 1 . . Feedback Events . | . . . . Feedback Blocked . | . . . . Robot Schematics Acquired . | . . . . Robots Built . | . . . . Matter . | . . . . Time . | . . . . Total Robot Build Rating . | . . . . Part Schematics Acquired . | . . . . Parts Built . | . . . . Matter . | . . . . Time . | . . . . Total Part Build Rating . | . . . . Parts Repaired . | . . . . Time . | . . . . Parts Recycled . | . . . . Recycled Matter . | . . . . Retrieved Matter . | . . . . Retrieved Components . | . . . . Parts Scanalyzed . | . . . . Part Schematics Acquired . | . . . . Parts Damaged . | . . . . Bothacking | -11 -10 -10 -10 ------------ Run | Scr Mat Min Exi Used RIF Installer . | . . . . Robots Hacked . | . . . . Non-combat . | . . . . Combat . | . . . . Robot Hacks Applied . | . . . . Relay Couplers Released . | . . . . Robots Rewired . | . . . . Allies Hacked . | . . . . Hacks Repelled . | . . . . Allies | -11 -10 -10 -10 -------- Run | Scr Mat Min Exi Total Allies . | . . . . Largest Group . | . . . . Highest-Rated Group . | . . . . Highest-Rated Ally . | . . . . Total Orders . | . . . . Ally Attacks . | . . . . Total Damage . | . . . . Kills . | . . . . Allies Corrupted . | . . . . Allies Melted . | . . . . Intel | -11 -10 -10 -10 ------- Run | Scr Mat Min Exi Robot Analysis Total . | . . . . Derelict Logs Recovered 1 | . . 1 . Drone Launches . | . . . . Drone Recoveries . | . . . . Exploration | -11 -10 -10 -10 ------------- Run | Scr Mat Min Exi Turns Passed 1690 | 45 426 770 449 Spaces Moved 874 | 28 186 443 217 Core 8 | 4 . . 4 Treads 866 | 24 186 443 213 Legs . | . . . . Wheels . | . . . . Hover . | . . . . Flight . | . . . . Fastest Speed 50 | 50 160 160 150 Average Speed 162 | 147 160 160 170 Slowest Speed 300 | 160 160 160 300 Overloaded Moves . | . . . . Propulsion Burnouts . | . . . . Robots Hopped . | . . . . Cave-ins Triggered . | . . . . Exploration Rate (%) 40 | 4 28 86 42 Regions Visited 3 Branch Regions 2 Pre-discovered Areas . | . . . . Known Exits Taken 1 | . 1 . . Unknown Exits Taken 2 | 1 . 1 . Scrap Searched 1 | . . 1 . Spaces Dug 1 | . . 1 . Terrain Destroyed 88 | . 14 11 63 Melee 1 | . . 1 . Projectile 2 | . . . 2 AOE 85 | . 14 10 61 Terrain Rammed . | . . . . Walls Destroyed . | . . . . Machines Disabled . | . . . . Actions | -11 -10 -10 -10 --------- Run | Scr Mat Min Exi Total 1027 | 30 260 477 260 Wait 17 | . 6 6 5 Move 871 | 27 185 442 217 Hop . | . . . . Pick Up 3 | . 1 1 1 Fast Attach 14 | 3 4 5 2 Attach 2 | . . . 2 Detach 3 | . . 2 1 Swap 1 | . . 1 . Drop 8 | . 3 1 4 Fire 72 | . 53 2 17 Melee 23 | . . 12 11 Ram . | . . . . Kick . | . . . . Crush . | . . . . Escape Stasis . | . . . . Rewire . | . . . . Trap . | . . . . Miscellaneous 13 | . 8 5 . Route ------- -11/Scrapyard -10/Materials -10/Mines (discovered 3 exits: [Mat x2] / *Exi) -10/Exiles (discovered 1 exit: [*Min]) History --------- Turn | Location | Event 11 | -11/Scrapyard | Discovered new exit (range 14) 46 | -11/Scrapyard | Entered Materials 279 | -10/Materials | Identified exit to Mines 300 | -10/Materials | Build established: Mutant 439 | -10/Materials | Upgraded with Utility slot (x1) 439 | -10/Materials | Upgraded with Weapon slot (x1) 472 | -10/Materials | Entered Mines 539 | -10/Mines | Met a Derelict shopkeep closing up shop 593 | -10/Mines | Discovered new exit (range 10) 689 | -10/Mines | Reached level 2 785 | -10/Mines | Discovered new exit (range 7) 878 | -10/Mines | Discovered new exit (range 17) 896 | -10/Mines | Core integrity fell below 50% 1234 | -10/Mines | Deemed a non-threat by the Exiles lab entrance 1242 | -10/Mines | Entered Exiles 1264 | -10/Exiles | Discovered new exit (range 17) 1286 | -10/Exiles | Met 8R-AWN 1308 | -10/Exiles | Met EX-HEX 1361 | -10/Exiles | Met EX-BIN 1380 | -10/Exiles | Aligned with FarCom system 1382 | -10/Exiles | Given EX-Vault access code 1420 | -10/Exiles | Opened EX-Vault 1429 | -10/Exiles | Found Field Lobotomy Kit 1435 | -10/Exiles | Found Firepult 1483 | -10/Exiles | Warned to stay clear of 0b10 Research branches 1587 | -10/Exiles | Attacked by the Exiles 1637 | -10/Exiles | Destroyed 7 combat bots 1655 | -10/Exiles | Core integrity fell below 20% 1691 | -10/Exiles | Destroyed by 8R-AWN with 8R-AWN's Boregun Last Messages --------------- Lgt. Angular Momentum Engine destroyed. HV Slug penetrates Earth. Penetrated by HV Slug. HV Slug penetrates Earth. Penetrated by HV Slug. HV Slug penetrates Earth. HV Slug penetrates Wall. Penetrated by HV Slug. HV Slug penetrates Earth. Penetrated by HV Slug. HV Slug penetrates Earth. Penetrated by HV Slug. HV Slug penetrates Earth. Penetrated by HV Slug. HV Slug penetrates Earth. Penetrated by HV Slug. HV Slug penetrates Earth. Penetrated by HV Slug. HV Slug penetrates Earth. Penetrated by HV Slug. Map ----- +----------------------------------------------------+ | "## """##?#?#????????????????????????????????????? | | "## """##?#???#??????????????????????????????????? | | """" ##?#?????????????????#????????????????????? | | "#############???????????#?#??##?#???????????????? | | """ #######????###?##################?#????????? | | # """#######?#############################??????? | | "# """##########?###########################??#??? | | ## """###################################?###?#??? | | ##############################################? ?# | | ############################################# #? | | ############################################